[Event "Titled Tuesday Blitz July 25 Early 2023"]
[White "SoyuzTM4"]
[Black "Richter, Nils"]
[BlackFideId "12990809"]
[WhiteElo "2186"]
[BlackElo "2538"]
[Result "0-1"]
[Round "2"]
[TimeControl "180+2"]
[Date "2023.07.25"]
[WhiteClock "0:00:01"]
[BlackClock "0:01:46"]
[Board "133"]

1. e4 {[%clk 0:03:00]}  c5 {[%clk 0:02:55]} 2. Nf3 {[%clk 0:02:59]}  d6 {[%clk 0:02:51]} 3. d4 {[%clk 0:02:57]}  cxd4 {[%clk 0:02:51]} 4. Nxd4 {[%clk 0:02:53]}  Nf6 {[%clk 0:02:52]} 5. Nc3 {[%clk 0:02:53]}  a6 {[%clk 0:02:53]} 6. Bc4 {[%clk 0:02:49]}  e6 {[%clk 0:02:48]} 7. Bb3 {[%clk 0:02:46]}  Nbd7 {[%clk 0:02:47]} 8. Be3 {[%clk 0:02:39]}  Nc5 {[%clk 0:02:44]} 9. f3 {[%clk 0:02:37]}  Be7 {[%clk 0:02:43]} 10. Qe2 {[%clk 0:02:37]}  Qc7 {[%clk 0:02:42]} 11. O-O-O {[%clk 0:02:35]}  b5 {[%clk 0:02:43]} 12. Kb1 {[%clk 0:02:33]}  O-O {[%clk 0:02:42]} 13. g4 {[%clk 0:02:26]}  Bd7 {[%clk 0:02:42]} 14. g5 {[%clk 0:02:18]}  Ne8 {[%clk 0:02:34]} 15. Qg2 {[%clk 0:01:34]}  b4 {[%clk 0:02:32]} 16. Nce2 {[%clk 0:01:33]}  a5 {[%clk 0:02:32]} 17. h4 {[%clk 0:01:01]}  a4 {[%clk 0:02:30]} 18. Bc4 {[%clk 0:01:00]}  a3 {[%clk 0:02:31]} 19. b3 {[%clk 0:00:58]}  Na4 {[%clk 0:02:24]} 20. g6 {[%clk 0:00:46]}  Nb2 {[%clk 0:02:04]} 21. gxf7+ {[%clk 0:00:39]}  Rxf7 {[%clk 0:02:03]} 22. Bxe6 {[%clk 0:00:31]}  Bxe6 {[%clk 0:02:03]} 23. Nxe6 {[%clk 0:00:30]}  Qc8 {[%clk 0:02:03]} 24. Ng5 {[%clk 0:00:23]}  Nxd1 {[%clk 0:01:59]} 25. Rxd1 {[%clk 0:00:20]}  Rf8 {[%clk 0:01:55]} 26. Nd4 {[%clk 0:00:18]}  Bf6 {[%clk 0:01:53]} 27. Nge6 {[%clk 0:00:14]}  Rf7 {[%clk 0:01:51]} 28. Bc1 {[%clk 0:00:11]}  Re7 {[%clk 0:01:50]} 29. Qg4 {[%clk 0:00:08]}  Bxd4 {[%clk 0:01:47]} 30. Nxd4 {[%clk 0:00:07]}  Qxg4 {[%clk 0:01:48]} 31. fxg4 {[%clk 0:00:06]}  Rxe4 {[%clk 0:01:49]} 32. Nf5 {[%clk 0:00:01]}  Rxg4 {[%clk 0:01:48]} 33. h5 {[%clk 0:00:01]}  Rc8 {[%clk 0:01:46]} 0-1


[Site "https://www.chess.com"]

[Event "Titled Tuesday Blitz July 25 Early 2023"]
[White "Pandey Srishti"]
[Black "Xiong, Jeffery"]
[WhiteFideId "35093290"]
[BlackFideId "2047640"]
[WhiteElo "2413"]
[BlackElo "2987"]
[Result "0-1"]
[Round "2"]
[TimeControl "180+2"]
[Date "2023.07.25"]
[WhiteClock "0:00:31"]
[BlackClock "0:01:30"]
[Board "136"]

1. e4 {[%clk 0:03:00]}  c5 {[%clk 0:02:59]} 2. Nf3 {[%clk 0:03:00]}  d6 {[%clk 0:02:59]} 3. d4 {[%clk 0:03:00]}  cxd4 {[%clk 0:03:00]} 4. Nxd4 {[%clk 0:03:01]}  Nf6 {[%clk 0:03:01]} 5. Nc3 {[%clk 0:03:01]}  a6 {[%clk 0:03:01]} 6. Bg5 {[%clk 0:02:55]}  Nbd7 {[%clk 0:02:57]} 7. f4 {[%clk 0:02:44]}  Qc7 {[%clk 0:02:53]} 8. Qe2 {[%clk 0:02:39]}  e5 {[%clk 0:02:18]} 9. Nf3 {[%clk 0:02:33]}  b5 {[%clk 0:02:14]} 10. O-O-O {[%clk 0:02:16]}  Be7 {[%clk 0:01:56]} 11. a3 {[%clk 0:01:53]}  O-O {[%clk 0:01:55]} 12. g4 {[%clk 0:01:52]}  Bb7 {[%clk 0:01:48]} 13. Bxf6 {[%clk 0:01:51]}  Nxf6 {[%clk 0:01:44]} 14. g5 {[%clk 0:01:51]}  Nh5 {[%clk 0:01:40]} 15. f5 {[%clk 0:01:43]}  Nf4 {[%clk 0:01:40]} 16. Qe1 {[%clk 0:01:34]}  Rac8 {[%clk 0:01:37]} 17. Rg1 {[%clk 0:01:33]}  d5 {[%clk 0:01:32]} 18. f6 {[%clk 0:01:25]}  Bxa3 {[%clk 0:01:31]} 19. bxa3 {[%clk 0:01:19]}  Qxc3 {[%clk 0:01:31]} 20. Qxc3 {[%clk 0:01:20]}  Rxc3 {[%clk 0:01:32]} 21. Nxe5 {[%clk 0:01:13]}  Rfc8 {[%clk 0:01:32]} 22. Rd2 {[%clk 0:01:11]}  dxe4 {[%clk 0:01:32]} 23. Kb2 {[%clk 0:00:30]}  e3 {[%clk 0:01:29]} 24. Rd8+ {[%clk 0:00:30]}  Rxd8 {[%clk 0:01:29]} 25. Kxc3 {[%clk 0:00:31]}  e2 {[%clk 0:01:29]} 26. Bxe2 {[%clk 0:00:31]}  Nxe2+ {[%clk 0:01:30]} 0-1


[Site "https://www.chess.com"]

[Event "Titled Tuesday Blitz July 25 Early 2023"]
[White "Grigoriants, Sergey"]
[Black "Vafin, Ayrat"]
[WhiteFideId "4130804"]
[BlackFideId "4146530"]
[WhiteElo "2905"]
[BlackElo "2411"]
[Result "1-0"]
[Round "2"]
[TimeControl "180+2"]
[Date "2023.07.25"]
[WhiteClock "0:01:41"]
[BlackClock "0:00:01"]
[Board "137"]

1. d4 {[%clk 0:03:00]}  d5 {[%clk 0:03:00]} 2. c4 {[%clk 0:03:00]}  e6 {[%clk 0:03:00]} 3. Nf3 {[%clk 0:03:01]}  Nf6 {[%clk 0:03:00]} 4. g3 {[%clk 0:03:00]}  b6 {[%clk 0:02:58]} 5. cxd5 {[%clk 0:02:58]}  Nxd5 {[%clk 0:02:53]} 6. Bg2 {[%clk 0:02:58]}  Bb7 {[%clk 0:02:53]} 7. O-O {[%clk 0:02:58]}  Be7 {[%clk 0:02:50]} 8. Re1 {[%clk 0:02:48]}  O-O {[%clk 0:02:44]} 9. e4 {[%clk 0:02:48]}  Nf6 {[%clk 0:02:40]} 10. Nc3 {[%clk 0:02:48]}  c5 {[%clk 0:02:31]} 11. d5 {[%clk 0:02:46]}  exd5 {[%clk 0:02:12]} 12. exd5 {[%clk 0:02:38]}  Nxd5 {[%clk 0:02:03]} 13. Nxd5 {[%clk 0:02:20]}  Bxd5 {[%clk 0:02:01]} 14. Rxe7 {[%clk 0:02:20]}  Qxe7 {[%clk 0:02:00]} 15. Qxd5 {[%clk 0:02:19]}  Nd7 {[%clk 0:01:52]} 16. Bf4 {[%clk 0:02:14]}  Nf6 {[%clk 0:01:42]} 17. Qf5 {[%clk 0:02:13]}  Rad8 {[%clk 0:01:34]} 18. Ne5 {[%clk 0:02:11]}  Rd4 {[%clk 0:01:02]} 19. Nc6 {[%clk 0:02:06]}  Qd7 {[%clk 0:00:51]} 20. Nxd4 {[%clk 0:01:59]}  Qxf5 {[%clk 0:00:41]} 21. Nxf5 {[%clk 0:01:58]}  Re8 {[%clk 0:00:41]} 22. Bf3 {[%clk 0:01:54]}  g6 {[%clk 0:00:30]} 23. Nd6 {[%clk 0:01:53]}  Rd8 {[%clk 0:00:17]} 24. Rd1 {[%clk 0:01:52]}  Rf8 {[%clk 0:00:06]} 25. a4 {[%clk 0:01:48]}  Ne8 {[%clk 0:00:06]} 26. Nc8 {[%clk 0:01:42]}  Nf6 {[%clk 0:00:03]} 27. Nxa7 {[%clk 0:01:41]}  h6 {[%clk 0:00:01]} 28. Nc6 {[%clk 0:01:40]}  g5 {[%clk 0:00:01]} 29. Be5 {[%clk 0:01:41]} 1-0


[Site "https://www.chess.com"]

[Event "Titled Tuesday Blitz July 25 Early 2023"]
[White "Sychev, Klementy"]
[Black "Gracia Alvarez, Gerardo Antonio"]
[WhiteFideId "4114060"]
[BlackFideId "5109124"]
[WhiteElo "2832"]
[BlackElo "2408"]
[Result "1-0"]
[Round "2"]
[TimeControl "180+2"]
[Date "2023.07.25"]
[WhiteClock "0:00:04"]
[BlackClock "0:00:02"]
[Board "139"]

1. e4 {[%clk 0:02:47]}  c5 {[%clk 0:03:00]} 2. Nf3 {[%clk 0:02:26]}  Nc6 {[%clk 0:03:00]} 3. d4 {[%clk 0:02:26]}  cxd4 {[%clk 0:03:00]} 4. Nxd4 {[%clk 0:02:26]}  Nf6 {[%clk 0:03:01]} 5. Nc3 {[%clk 0:02:24]}  e5 {[%clk 0:03:01]} 6. Ndb5 {[%clk 0:02:24]}  h6 {[%clk 0:03:02]} 7. Nd6+ {[%clk 0:02:23]}  Bxd6 {[%clk 0:03:02]} 8. Qxd6 {[%clk 0:02:24]}  Qe7 {[%clk 0:03:03]} 9. Qxe7+ {[%clk 0:02:23]}  Kxe7 {[%clk 0:03:04]} 10. b3 {[%clk 0:02:24]}  d6 {[%clk 0:03:01]} 11. Ba3 {[%clk 0:02:24]}  a6 {[%clk 0:02:53]} 12. O-O-O {[%clk 0:02:17]}  Rd8 {[%clk 0:02:52]} 13. Rd2 {[%clk 0:02:01]}  b5 {[%clk 0:02:52]} 14. Nd5+ {[%clk 0:01:55]}  Nxd5 {[%clk 0:02:51]} 15. exd5 {[%clk 0:01:55]}  Nb8 {[%clk 0:02:36]} 16. f4 {[%clk 0:01:52]}  Nd7 {[%clk 0:02:34]} 17. Bd3 {[%clk 0:01:45]}  Rb8 {[%clk 0:02:26]} 18. Bb4 {[%clk 0:01:37]}  f6 {[%clk 0:02:11]} 19. Re1 {[%clk 0:01:27]}  Bb7 {[%clk 0:02:10]} 20. Bf5 {[%clk 0:01:24]}  Nb6 {[%clk 0:01:44]} 21. fxe5 {[%clk 0:01:08]}  fxe5 {[%clk 0:01:45]} 22. Rxe5+ {[%clk 0:00:21]}  Kf6 {[%clk 0:01:45]} 23. Re6+ {[%clk 0:00:21]}  Kxf5 {[%clk 0:01:45]} 24. Rf2+ {[%clk 0:00:22]}  Kg4 {[%clk 0:01:35]} 25. Rg6+ {[%clk 0:00:19]}  Kh5 {[%clk 0:01:35]} 26. Rxg7 {[%clk 0:00:20]}  Rf8 {[%clk 0:01:17]} 27. Rxf8 {[%clk 0:00:12]}  Rxf8 {[%clk 0:01:18]} 28. Rxb7 {[%clk 0:00:10]}  Nxd5 {[%clk 0:01:19]} 29. Bxd6 {[%clk 0:00:11]}  Rf2 {[%clk 0:01:06]} 30. Rg7 {[%clk 0:00:10]}  Ne3 {[%clk 0:01:01]} 31. Kb2 {[%clk 0:00:08]}  Rxc2+ {[%clk 0:00:43]} 32. Ka3 {[%clk 0:00:08]}  a5 {[%clk 0:00:38]} 33. Bf4 {[%clk 0:00:07]}  Nd5 {[%clk 0:00:16]} 34. g4+ {[%clk 0:00:07]}  Kh4 {[%clk 0:00:16]} 35. Bg3+ {[%clk 0:00:07]}  Kh3 {[%clk 0:00:16]} 36. b4 {[%clk 0:00:08]}  axb4+ {[%clk 0:00:16]} 37. Kb3 {[%clk 0:00:08]}  Rc3+ {[%clk 0:00:16]} 38. Kb2 {[%clk 0:00:08]}  Rf3 {[%clk 0:00:16]} 39. Rg6 {[%clk 0:00:06]}  Ne3 {[%clk 0:00:12]} 40. Rxh6+ {[%clk 0:00:06]}  Kxg4 {[%clk 0:00:12]} 41. Rg6+ {[%clk 0:00:06]}  Kf5 {[%clk 0:00:12]} 42. Rg8 {[%clk 0:00:06]}  Nc4+ {[%clk 0:00:12]} 43. Kc2 {[%clk 0:00:07]}  Rc3+ {[%clk 0:00:08]} 44. Kb1 {[%clk 0:00:07]}  Rd3 {[%clk 0:00:06]} 45. Rf8+ {[%clk 0:00:07]}  Ke4 {[%clk 0:00:06]} 46. Re8+ {[%clk 0:00:07]}  Kf3 {[%clk 0:00:06]} 47. Re1 {[%clk 0:00:06]}  Rd2 {[%clk 0:00:05]} 48. Rf1+ {[%clk 0:00:06]}  Kg2 {[%clk 0:00:05]} 49. Re1 {[%clk 0:00:05]}  Kf3 {[%clk 0:00:05]} 50. Rc1 {[%clk 0:00:04]}  Na3+ {[%clk 0:00:04]} 51. Ka1 {[%clk 0:00:04]}  Nc4 {[%clk 0:00:04]} 52. Kb1 {[%clk 0:00:04]}  Ke4 {[%clk 0:00:04]} 53. Bc7 {[%clk 0:00:04]}  Kd3 {[%clk 0:00:04]} 54. Bf4 {[%clk 0:00:03]}  Rb2+ {[%clk 0:00:03]} 55. Ka1 {[%clk 0:00:03]}  Rf2 {[%clk 0:00:04]} 56. Bg3 {[%clk 0:00:03]}  Re2 {[%clk 0:00:04]} 57. Kb1 {[%clk 0:00:04]}  Na3+ {[%clk 0:00:04]} 58. Ka1 {[%clk 0:00:04]}  Nc2+ {[%clk 0:00:05]} 59. Kb1 {[%clk 0:00:05]}  Na3+ {[%clk 0:00:05]} 60. Ka1 {[%clk 0:00:05]}  Nc2+ {[%clk 0:00:05]} 61. Kb2 {[%clk 0:00:05]}  Nd4+ {[%clk 0:00:05]} 62. Kb1 {[%clk 0:00:05]}  Nf3 {[%clk 0:00:04]} 63. h4 {[%clk 0:00:04]}  Nd2+ {[%clk 0:00:03]} 64. Ka1 {[%clk 0:00:03]}  Rg2 {[%clk 0:00:02]} 65. Bf4 {[%clk 0:00:04]}  Nc4 {[%clk 0:00:02]} 66. h5 {[%clk 0:00:03]}  Re2 {[%clk 0:00:01]} 67. h6 {[%clk 0:00:03]}  Rf2 {[%clk 0:00:02]} 68. h7 {[%clk 0:00:04]}  Rxf4 {[%clk 0:00:02]} 69. h8=Q {[%clk 0:00:04]} 1-0


[Site "https://www.chess.com"]

[Event "Titled Tuesday Blitz July 25 Early 2023"]
[White "Putnam, Liam"]
[Black "Yashmetov, Mikhail"]
[WhiteFideId "30938279"]
[BlackFideId "24198900"]
[WhiteElo "2806"]
[BlackElo "2407"]
[Result "1-0"]
[Round "2"]
[TimeControl "180+2"]
[Date "2023.07.25"]
[WhiteClock "0:01:34"]
[BlackClock "0:00:02"]
[Board "140"]

1. d4 {[%clk 0:03:00]}  Nf6 {[%clk 0:02:58]} 2. Nc3 {[%clk 0:03:00]}  d5 {[%clk 0:02:58]} 3. Bf4 {[%clk 0:03:00]}  g6 {[%clk 0:02:58]} 4. e3 {[%clk 0:03:00]}  Bg7 {[%clk 0:02:59]} 5. h4 {[%clk 0:03:01]}  h5 {[%clk 0:02:59]} 6. Nf3 {[%clk 0:03:01]}  O-O {[%clk 0:02:59]} 7. Ne5 {[%clk 0:03:02]}  c5 {[%clk 0:02:59]} 8. dxc5 {[%clk 0:03:02]}  Qa5 {[%clk 0:02:59]} 9. Qd4 {[%clk 0:03:01]}  Ne4 {[%clk 0:02:36]} 10. b4 {[%clk 0:02:59]}  Qa3 {[%clk 0:02:22]} 11. Nxd5 {[%clk 0:02:42]}  f5 {[%clk 0:01:49]} 12. Nxe7+ {[%clk 0:02:38]}  Kh7 {[%clk 0:01:48]} 13. N7xg6 {[%clk 0:02:36]}  Rf6 {[%clk 0:01:36]} 14. Ne7 {[%clk 0:02:28]}  Nc6 {[%clk 0:01:28]} 15. N7xc6 {[%clk 0:02:28]}  bxc6 {[%clk 0:01:22]} 16. Bd3 {[%clk 0:02:25]}  Rb8 {[%clk 0:01:13]} 17. Nxc6 {[%clk 0:02:19]}  Rxc6 {[%clk 0:01:04]} 18. Be5 {[%clk 0:02:13]}  Rxb4 {[%clk 0:00:46]} 19. Qd5 {[%clk 0:02:07]}  Rxc5 {[%clk 0:00:30]} 20. Qf7 {[%clk 0:01:57]}  Rxe5 {[%clk 0:00:30]} 21. Qxh5+ {[%clk 0:01:55]}  Kg8 {[%clk 0:00:30]} 22. O-O {[%clk 0:01:55]}  Bd7 {[%clk 0:00:19]} 23. Rfd1 {[%clk 0:01:42]}  Be8 {[%clk 0:00:19]} 24. Qe2 {[%clk 0:01:43]}  Nc3 {[%clk 0:00:18]} 25. Bc4+ {[%clk 0:01:41]}  Kh7 {[%clk 0:00:15]} 26. Qd3 {[%clk 0:01:40]}  Nxd1 {[%clk 0:00:15]} 27. Qxa3 {[%clk 0:01:40]}  Rb6 {[%clk 0:00:03]} 28. Rxd1 {[%clk 0:01:40]}  Rg6 {[%clk 0:00:04]} 29. Rd6 {[%clk 0:01:33]}  Rxd6 {[%clk 0:00:02]} 30. Qxd6 {[%clk 0:01:34]}  Bf7 {[%clk 0:00:02]} 31. Bxf7 {[%clk 0:01:34]} 1-0


[Site "https://www.chess.com"]

[Event "Titled Tuesday Blitz July 25 Early 2023"]
[White "Rahman, Masruri"]
[Black "Spaqi, Wilson"]
[WhiteFideId "7101163"]
[BlackFideId "2053888"]
[WhiteElo "2769"]
[BlackElo "2405"]
[Result "1/2-1/2"]
[Round "2"]
[TimeControl "180+2"]
[Date "2023.07.25"]
[WhiteClock "0:00:19"]
[BlackClock "0:00:31"]
[Board "142"]

1. d4 {[%clk 0:03:00]}  d5 {[%clk 0:02:59]} 2. Bf4 {[%clk 0:02:59]}  Nf6 {[%clk 0:02:54]} 3. e3 {[%clk 0:02:59]}  c6 {[%clk 0:02:51]} 4. c4 {[%clk 0:02:58]}  e6 {[%clk 0:02:51]} 5. Nc3 {[%clk 0:02:57]}  Bd6 {[%clk 0:02:48]} 6. Bg3 {[%clk 0:02:57]}  Qe7 {[%clk 0:02:46]} 7. Nf3 {[%clk 0:02:56]}  Nbd7 {[%clk 0:02:46]} 8. Ne5 {[%clk 0:02:53]}  Ne4 {[%clk 0:02:41]} 9. Nxe4 {[%clk 0:02:49]}  dxe4 {[%clk 0:02:42]} 10. a3 {[%clk 0:02:44]}  O-O {[%clk 0:02:36]} 11. Nxd7 {[%clk 0:02:41]}  Bxd7 {[%clk 0:02:34]} 12. Be2 {[%clk 0:02:25]}  f5 {[%clk 0:02:19]} 13. O-O {[%clk 0:02:21]}  Kh8 {[%clk 0:02:12]} 14. Be5 {[%clk 0:02:16]}  Rfd8 {[%clk 0:02:08]} 15. Qb3 {[%clk 0:02:13]}  Rab8 {[%clk 0:02:07]} 16. Rad1 {[%clk 0:02:07]}  Be8 {[%clk 0:02:06]} 17. Qc3 {[%clk 0:02:06]}  Bxe5 {[%clk 0:01:58]} 18. dxe5 {[%clk 0:02:05]}  Rxd1 {[%clk 0:01:59]} 19. Rxd1 {[%clk 0:02:05]}  Rd8 {[%clk 0:02:00]} 20. Rd4 {[%clk 0:01:51]}  c5 {[%clk 0:01:45]} 21. Rd2 {[%clk 0:01:49]}  Rxd2 {[%clk 0:01:38]} 22. Qxd2 {[%clk 0:01:50]}  Qd7 {[%clk 0:01:39]} 23. Qc3 {[%clk 0:01:24]}  Kg8 {[%clk 0:01:34]} 24. f3 {[%clk 0:01:24]}  exf3 {[%clk 0:01:31]} 25. Bxf3 {[%clk 0:01:25]}  Qc7 {[%clk 0:01:30]} 26. Kf2 {[%clk 0:01:20]}  Bd7 {[%clk 0:01:26]} 27. e4 {[%clk 0:01:16]}  fxe4 {[%clk 0:01:20]} 28. Bxe4 {[%clk 0:01:17]}  Bc6 {[%clk 0:01:20]} 29. Bxc6 {[%clk 0:01:02]}  Qxc6 {[%clk 0:01:21]} 30. Qa5 {[%clk 0:00:53]}  Qb6 {[%clk 0:00:50]} 31. Qxb6 {[%clk 0:00:40]}  axb6 {[%clk 0:00:51]} 32. Ke3 {[%clk 0:00:35]}  Kf7 {[%clk 0:00:52]} 33. Kf4 {[%clk 0:00:31]}  Kg6 {[%clk 0:00:48]} 34. g4 {[%clk 0:00:29]}  Kh6 {[%clk 0:00:44]} 35. h4 {[%clk 0:00:29]}  Kg6 {[%clk 0:00:45]} 36. Ke4 {[%clk 0:00:26]}  h5 {[%clk 0:00:38]} 37. g5 {[%clk 0:00:20]}  Kf7 {[%clk 0:00:35]} 38. Kf4 {[%clk 0:00:20]}  Kg6 {[%clk 0:00:35]} 39. Ke4 {[%clk 0:00:20]}  Kf7 {[%clk 0:00:35]} 40. b4 {[%clk 0:00:20]}  Kg6 {[%clk 0:00:30]} 41. Kf4 {[%clk 0:00:20]}  Kf7 {[%clk 0:00:30]} 42. Ke4 {[%clk 0:00:20]}  Kg6 {[%clk 0:00:30]} 43. Kf4 {[%clk 0:00:18]}  Kf7 {[%clk 0:00:31]} 44. Ke4 {[%clk 0:00:19]} 1/2-1/2


[Site "https://www.chess.com"]

[Event "Titled Tuesday Blitz July 25 Early 2023"]
[White "Schmakel, Sam"]
[Black "Xie, Bryan"]
[WhiteFideId "2039311"]
[BlackFideId "30941296"]
[WhiteElo "2736"]
[BlackElo "2401"]
[Result "1-0"]
[Round "2"]
[TimeControl "180+2"]
[Date "2023.07.25"]
[WhiteClock "0:00:17"]
[BlackClock "0:00:01"]
[Board "144"]

1. c4 {[%clk 0:03:00]}  e6 {[%clk 0:02:58]} 2. g3 {[%clk 0:03:00]}  d5 {[%clk 0:02:53]} 3. Bg2 {[%clk 0:03:01]}  Nf6 {[%clk 0:02:47]} 4. Nf3 {[%clk 0:03:00]}  d4 {[%clk 0:02:40]} 5. O-O {[%clk 0:02:58]}  c5 {[%clk 0:02:36]} 6. e3 {[%clk 0:02:53]}  Nc6 {[%clk 0:02:35]} 7. exd4 {[%clk 0:02:51]}  cxd4 {[%clk 0:02:31]} 8. Re1 {[%clk 0:02:51]}  Bd6 {[%clk 0:02:30]} 9. d3 {[%clk 0:02:46]}  O-O {[%clk 0:02:12]} 10. a3 {[%clk 0:02:46]}  a5 {[%clk 0:02:12]} 11. Bg5 {[%clk 0:02:46]}  h6 {[%clk 0:02:08]} 12. Bxf6 {[%clk 0:02:46]}  Qxf6 {[%clk 0:02:08]} 13. Nbd2 {[%clk 0:02:46]}  Qe7 {[%clk 0:02:05]} 14. Rc1 {[%clk 0:02:44]}  e5 {[%clk 0:01:35]} 15. Ne4 {[%clk 0:02:38]}  Bc7 {[%clk 0:01:36]} 16. c5 {[%clk 0:02:38]}  Be6 {[%clk 0:01:32]} 17. Nfd2 {[%clk 0:02:38]}  f5 {[%clk 0:01:24]} 18. Nd6 {[%clk 0:02:38]}  Bxd6 {[%clk 0:01:23]} 19. cxd6 {[%clk 0:02:39]}  Qxd6 {[%clk 0:01:24]} 20. Nc4 {[%clk 0:02:39]}  Bxc4 {[%clk 0:01:20]} 21. Rxc4 {[%clk 0:02:40]}  Rac8 {[%clk 0:01:19]} 22. Qa4 {[%clk 0:02:35]}  f4 {[%clk 0:00:31]} 23. Bxc6 {[%clk 0:01:37]}  fxg3 {[%clk 0:00:31]} 24. hxg3 {[%clk 0:01:33]}  Rxc6 {[%clk 0:00:19]} 25. Rxc6 {[%clk 0:01:33]}  bxc6 {[%clk 0:00:20]} 26. Qxa5 {[%clk 0:01:33]}  Qf6 {[%clk 0:00:21]} 27. Re2 {[%clk 0:01:28]}  Re8 {[%clk 0:00:17]} 28. Kg2 {[%clk 0:01:02]}  Qf5 {[%clk 0:00:15]} 29. Re4 {[%clk 0:01:01]}  Rf8 {[%clk 0:00:14]} 30. Qd2 {[%clk 0:01:01]}  Qf3+ {[%clk 0:00:14]} 31. Kg1 {[%clk 0:01:02]}  Rf5 {[%clk 0:00:15]} 32. Qe2 {[%clk 0:01:02]}  Qxe2 {[%clk 0:00:15]} 33. Rxe2 {[%clk 0:01:03]}  Rf3 {[%clk 0:00:15]} 34. Rd2 {[%clk 0:01:03]}  Kf7 {[%clk 0:00:15]} 35. Kg2 {[%clk 0:01:03]}  Rf5 {[%clk 0:00:15]} 36. b4 {[%clk 0:01:04]}  Ke6 {[%clk 0:00:15]} 37. a4 {[%clk 0:01:01]}  Kd6 {[%clk 0:00:14]} 38. Rc2 {[%clk 0:00:55]}  g5 {[%clk 0:00:14]} 39. b5 {[%clk 0:00:51]}  cxb5 {[%clk 0:00:14]} 40. axb5 {[%clk 0:00:52]}  Rf8 {[%clk 0:00:12]} 41. Rc6+ {[%clk 0:00:46]}  Kd5 {[%clk 0:00:12]} 42. Rxh6 {[%clk 0:00:47]}  Rb8 {[%clk 0:00:11]} 43. b6 {[%clk 0:00:43]}  Kc5 {[%clk 0:00:12]} 44. Re6 {[%clk 0:00:43]}  Kb4 {[%clk 0:00:10]} 45. Rxe5 {[%clk 0:00:42]}  Kc3 {[%clk 0:00:10]} 46. Rxg5 {[%clk 0:00:27]}  Rxb6 {[%clk 0:00:09]} 47. Rg8 {[%clk 0:00:25]}  Kxd3 {[%clk 0:00:10]} 48. Rd8 {[%clk 0:00:22]}  Rf6 {[%clk 0:00:07]} 49. f4 {[%clk 0:00:21]}  Ke3 {[%clk 0:00:08]} 50. Re8+ {[%clk 0:00:21]}  Kd2 {[%clk 0:00:07]} 51. Kf3 {[%clk 0:00:21]}  d3 {[%clk 0:00:07]} 52. g4 {[%clk 0:00:22]}  Kd1 {[%clk 0:00:06]} 53. g5 {[%clk 0:00:21]}  Ra6 {[%clk 0:00:05]} 54. Rd8 {[%clk 0:00:21]}  d2 {[%clk 0:00:05]} 55. f5 {[%clk 0:00:20]}  Ra3+ {[%clk 0:00:05]} 56. Kg4 {[%clk 0:00:20]}  Ra4+ {[%clk 0:00:05]} 57. Kh5 {[%clk 0:00:20]}  Ke2 {[%clk 0:00:03]} 58. f6 {[%clk 0:00:19]}  Rf4 {[%clk 0:00:02]} 59. Kh6 {[%clk 0:00:16]}  Rh4+ {[%clk 0:00:02]} 60. Kg7 {[%clk 0:00:16]}  Rg4 {[%clk 0:00:01]} 61. g6 {[%clk 0:00:16]}  Rg3 {[%clk 0:00:01]} 62. Rxd2+ {[%clk 0:00:15]}  Kxd2 {[%clk 0:00:01]} 63. f7 {[%clk 0:00:16]}  Rf3 {[%clk 0:00:01]} 64. f8=Q {[%clk 0:00:17]} 1-0


[Site "https://www.chess.com"]

[Event "Titled Tuesday Blitz July 25 Early 2023"]
[White "Donskov, Anatoly"]
[Black "Matinian, Nikita"]
[WhiteFideId "24143413"]
[BlackFideId "24129100"]
[WhiteElo "2401"]
[BlackElo "2733"]
[Result "0-1"]
[Round "2"]
[TimeControl "180+2"]
[Date "2023.07.25"]
[WhiteClock "0:00:04"]
[BlackClock "0:01:41"]
[Board "145"]

1. e4 {[%clk 0:03:00]}  c5 {[%clk 0:02:59]} 2. Nf3 {[%clk 0:03:00]}  e6 {[%clk 0:02:59]} 3. d4 {[%clk 0:03:00]}  cxd4 {[%clk 0:03:00]} 4. Nxd4 {[%clk 0:03:01]}  Nc6 {[%clk 0:03:01]} 5. Nc3 {[%clk 0:03:01]}  Nf6 {[%clk 0:03:01]} 6. a3 {[%clk 0:03:01]}  d5 {[%clk 0:03:01]} 7. exd5 {[%clk 0:02:59]}  Nxd5 {[%clk 0:02:59]} 8. Nxd5 {[%clk 0:02:59]}  Qxd5 {[%clk 0:02:58]} 9. Nxc6 {[%clk 0:02:59]}  bxc6 {[%clk 0:02:57]} 10. c4 {[%clk 0:02:51]}  Qxd1+ {[%clk 0:02:56]} 11. Kxd1 {[%clk 0:02:51]}  Bc5 {[%clk 0:02:55]} 12. Ke2 {[%clk 0:02:41]}  a5 {[%clk 0:02:54]} 13. Be3 {[%clk 0:02:40]}  Bxe3 {[%clk 0:02:54]} 14. Kxe3 {[%clk 0:02:40]}  Rb8 {[%clk 0:02:54]} 15. Rb1 {[%clk 0:02:40]}  c5 {[%clk 0:02:39]} 16. Bd3 {[%clk 0:02:34]}  Ke7 {[%clk 0:02:34]} 17. Rhd1 {[%clk 0:02:27]}  e5 {[%clk 0:02:32]} 18. Bc2 {[%clk 0:02:19]}  Be6 {[%clk 0:02:30]} 19. b3 {[%clk 0:02:16]}  Rhd8 {[%clk 0:02:21]} 20. Rxd8 {[%clk 0:02:08]}  Kxd8 {[%clk 0:02:16]} 21. f4 {[%clk 0:02:04]}  exf4+ {[%clk 0:02:15]} 22. Kxf4 {[%clk 0:02:04]}  Ke7 {[%clk 0:02:16]} 23. g4 {[%clk 0:01:44]}  Rd8 {[%clk 0:02:15]} 24. Rd1 {[%clk 0:01:43]}  Rb8 {[%clk 0:01:58]} 25. a4 {[%clk 0:00:38]}  h6 {[%clk 0:01:57]} 26. h4 {[%clk 0:00:38]}  g5+ {[%clk 0:01:56]} 27. hxg5 {[%clk 0:00:32]}  hxg5+ {[%clk 0:01:57]} 28. Kxg5 {[%clk 0:00:33]}  Rg8+ {[%clk 0:01:57]} 29. Kf4 {[%clk 0:00:34]}  Rxg4+ {[%clk 0:01:57]} 30. Kf3 {[%clk 0:00:34]}  Rh4 {[%clk 0:01:53]} 31. Rg1 {[%clk 0:00:28]}  Rh2 {[%clk 0:01:46]} 32. Rg2 {[%clk 0:00:25]}  Rxg2 {[%clk 0:01:46]} 33. Kxg2 {[%clk 0:00:25]}  Kf6 {[%clk 0:01:46]} 34. Kf3 {[%clk 0:00:25]}  Ke5 {[%clk 0:01:47]} 35. Ke3 {[%clk 0:00:23]}  Bf5 {[%clk 0:01:40]} 36. Bd1 {[%clk 0:00:07]}  Be4 {[%clk 0:01:40]} 37. Bh5 {[%clk 0:00:03]}  f5 {[%clk 0:01:40]} 38. Bd1 {[%clk 0:00:04]}  f4+ {[%clk 0:01:41]} 39. Kd2 {[%clk 0:00:04]}  Kd4 {[%clk 0:01:41]} 0-1


[Site "https://www.chess.com"]

[Event "Titled Tuesday Blitz July 25 Early 2023"]
[White "Marn, Jan"]
[Black "Mayank Chakraborty"]
[WhiteFideId "14619245"]
[BlackFideId "25659766"]
[WhiteElo "2401"]
[BlackElo "2720"]
[Result "0-1"]
[Round "2"]
[TimeControl "180+2"]
[Date "2023.07.25"]
[WhiteClock "0:00:11"]
[BlackClock "0:01:51"]
[Board "146"]

1. d4 {[%clk 0:02:54]}  Nf6 {[%clk 0:02:59]} 2. Nf3 {[%clk 0:02:55]}  e6 {[%clk 0:02:59]} 3. e3 {[%clk 0:02:52]}  d5 {[%clk 0:02:59]} 4. Bd3 {[%clk 0:02:51]}  c5 {[%clk 0:02:58]} 5. b3 {[%clk 0:02:50]}  Nc6 {[%clk 0:02:57]} 6. Bb2 {[%clk 0:02:50]}  cxd4 {[%clk 0:02:54]} 7. exd4 {[%clk 0:02:51]}  Bd6 {[%clk 0:02:51]} 8. O-O {[%clk 0:02:50]}  Qc7 {[%clk 0:02:51]} 9. a3 {[%clk 0:02:49]}  O-O {[%clk 0:02:51]} 10. Nbd2 {[%clk 0:02:49]}  b6 {[%clk 0:02:47]} 11. Re1 {[%clk 0:02:43]}  Bb7 {[%clk 0:02:47]} 12. Ne5 {[%clk 0:02:42]}  Ne7 {[%clk 0:02:44]} 13. Qf3 {[%clk 0:02:13]}  Rad8 {[%clk 0:02:41]} 14. Qh3 {[%clk 0:01:53]}  Ne4 {[%clk 0:02:29]} 15. f3 {[%clk 0:01:31]}  Ng5 {[%clk 0:02:23]} 16. Qh4 {[%clk 0:01:23]}  f6 {[%clk 0:02:23]} 17. Ng4 {[%clk 0:01:20]}  Nf5 {[%clk 0:02:16]} 18. Bxf5 {[%clk 0:01:11]}  exf5 {[%clk 0:02:17]} 19. Ne3 {[%clk 0:01:12]}  f4 {[%clk 0:02:17]} 20. Nef1 {[%clk 0:01:02]}  Qxc2 {[%clk 0:02:17]} 21. Rab1 {[%clk 0:01:02]}  Rfe8 {[%clk 0:02:10]} 22. Rec1 {[%clk 0:00:42]}  Qg6 {[%clk 0:01:52]} 23. Re1 {[%clk 0:00:37]}  Ba6 {[%clk 0:01:51]} 24. Qf2 {[%clk 0:00:11]}  Nh3+ {[%clk 0:01:51]} 0-1


[Site "https://www.chess.com"]